bitfinex-derivatives/quotes_ETHF0:USTF0_20250403
["timestamp","ask_amount","ask_price","bid_price","bid_amount"]
[1743687741146,1.12215,1782.6,1782.5,1.9223]
[1743687741348,6.33915,1782.6,1782.5,40.8]
[1743687741944,1.12228,1782.4,1782.3,5.1301]
[1743687742345,1.12228,1782.4,1782.3,45.9301]
[1743687742644,1.8419,1782.5,1782.3,44.0078]
[1743687742843,1.12228,1782.4,1782.3,45.9301]
[1743687743246,1.12228,1782.4,1782.3,44.0078]
[1743687743847,1.12228,1782.4,1782.3,40.8]
[1743687744936,4.64756,1782.5,1782.1,3.2078]
[1743687745142,1.12253,1782.0,1781.9,5.0731]
[1743687745341,5.179,1782.0,1781.9,45.8731]
[1743687745537,5.179,1782.0,1781.9,49.49569]
[1743687745740,5.179,1782.0,1781.9,44.0078]
[1743687745939,5.179,1782.0,1781.9,47.63039]
[1743687746148,5.179,1782.0,1781.9,44.0078]
[1743687746550,5.179,1782.0,1781.9,40.8]
[1743687746551,6.30153,1782.0,1781.9,40.8]
[1743687746752,5.179,1782.0,1781.9,40.8]
[1743687746950,4.179,1782.0,1781.9,41.92259]
[1743687747150,4.179,1782.0,1781.9,40.8]
[1743687747340,4.179,1782.0,1781.9,42.7703]
[1743687747841,5.30153,1782.0,1781.9,42.7703]
[1743687748048,4.179,1782.0,1781.9,42.7703]
[1743687748552,5.30153,1782.0,1781.9,42.7703]
[1743687749347,1.12272,1781.7,1781.6,3.2078]
[1743687749753,1.12272,1781.7,1781.6,44.0078]
[1743687750147,1.1227,1781.8,1781.6,44.0078]
[1743687750445,1.1227,1781.8,1781.7,1.9284]
[1743687752352,1.12261,1781.9,1781.7,1.9284]
[1743687752547,0.00840735,1782.1,1781.8,3.2078]
[1743687752854,11.13563,1783.0,1782.1,2.80618]
[1743687753155,11.13563,1783.0,1782.7,3.2078]
[1743687753156,1.8271,1783.0,1782.7,3.2078]
[1743687753355,1.8271,1783.0,1782.4,9.0318]
[1743687753356,1.12222,1782.6,1782.4,9.0318]
[1743687753551,1.12215,1782.6,1782.5,40.8]
[1743687753853,1.12222,1782.5,1782.4,3.2078]
[1743687754057,1.12222,1782.5,1782.4,3.21620735]
[1743687754860,5.129,1782.6,1782.4,6.83843735]
[1743687755158,6.25115,1782.6,1782.5,1.8024]
[1743687755358,8.21875,1782.6,1782.5,1.8024]
[1743687755845,1.12222,1782.5,1782.4,3.21620735]
[1743687756049,5.129,1782.6,1782.4,3.21620735]
[1743687756253,5.129,1782.6,1782.5,1.8753]
[1743687756653,6.25115,1782.6,1782.5,1.8753]
[1743687756957,5.129,1782.6,1782.5,1.8753]
[1743687757156,6.25115,1782.6,1782.5,1.8753]
[1743687757855,0.00840735,1782.7,1782.6,1.12215]
[1743687758056,0.00840735,1782.7,1782.6,4.32995]
[1743687758258,5.092,1783.5,1782.8,2.80494]
[1743687758558,2.80437,1783.3,1783.1,3.2078]
[1743687758758,1.12178,1783.2,1783.1,3.2078]
[1743687759356,1.12178,1783.2,1782.4,4.80437735]
[1743687759357,1.1219,1783.0,1782.9,3.2078]
[1743687760457,5.084,1783.1,1782.9,3.2078]
[1743687760757,1.12178,1783.2,1782.9,5.7078]
[1743687760953,0.00840735,1783.3,1783.1,3.2078]
[1743687761154,1.12178,1783.2,1783.1,3.2078]
[1743687761350,1.1219,1783.0,1782.9,3.2078]
[1743687762055,6.1979,1783.0,1782.9,3.2078]
[1743687762257,1.12179,1783.2,1782.9,5.7078]
[1743687762466,1.12179,1783.2,1783.1,3.2078]
[1743687762663,3.07034735,1783.3,1783.1,3.2078]
[1743687762864,1.13014735,1783.3,1783.1,3.2078]
[1743687763166,1.12178,1783.2,1783.1,3.2078]
[1743687763363,3.07036735,1783.3,1783.1,3.2078]
[1743687763961,1.13015735,1783.3,1783.1,3.2078]
[1743687764159,0.00840735,1783.3,1783.1,3.2078]
[1743687764359,7.35e-06,1783.3,1783.2,1.12178]
[1743687764767,7.35e-06,1783.3,1783.2,5.58478]
[1743687764965,7.35e-06,1783.3,1783.2,46.38478]
[1743687767368,7.35e-06,1783.3,1783.1,3.2078]
[1743687767666,1.12178,1783.2,1783.1,3.2078]
[1743687767867,1.12177735,1783.3,1783.1,3.2078]
[1743687768169,7.35e-06,1783.3,1783.2,1.12178]
[1743687768563,7.35e-06,1783.3,1783.2,3.62178]
[1743687768965,1.12171735,1783.3,1783.2,2.5]
[1743687769162,7.35e-06,1783.3,1783.2,3.62178]
[1743687769574,1.9973,1784.4,1783.3,6.01206]
[1743687769769,1.963,1784.3,1784.2,3.2078]
[1743687769968,3.08408,1784.3,1784.2,3.2078]
[1743687770167,1.12125,1784.1,1784.0,44.0078]
[1743687770369,1.12135,1783.9,1783.8,3.2078]
[1743687770571,1.12142,1783.8,1783.6,3.2078]
[1743687770770,1.9243,1783.8,1783.4,3.2078]
[1743687771068,0.00840735,1784.0,1783.6,2.80382]
[1743687771271,0.00840735,1784.0,1783.9,4.32914]
[1743687771468,0.00840735,1784.0,1783.9,44.0078]
[1743687771767,0.00840735,1784.0,1783.9,45.12914]
[1743687772168,0.00840735,1784.0,1783.9,41.92134]
[1743687772368,0.00840735,1784.0,1783.9,45.12914]
[1743687772562,1.93270735,1784.0,1783.9,45.12914]
[1743687772970,1.93270735,1784.0,1783.9,4.32914]
[1743687774177,0.00840735,1784.0,1783.9,4.32914]
[1743687775386,0.00840735,1784.0,1783.9,6.82914]
[1743687776176,0.00840735,1784.0,1783.9,4.32914]
[1743687776381,0.00840735,1784.0,1783.7,5.1942]
[1743687776580,1.12972735,1784.0,1783.8,1.12135]
[1743687776781,1.12972735,1784.0,1783.8,4.32915]
[1743687776782,2.0119,1783.9,1783.8,4.32915]
[1743687776976,0.00840735,1784.0,1783.9,1.12134]
[1743687777181,0.00840735,1784.0,1783.9,2.94764]
[1743687777480,0.00840735,1784.0,1783.9,5.44764]
[1743687777992,0.00840735,1784.0,1783.9,43.74764]
[1743687778189,7.35e-06,1784.0,1783.9,46.24764]
[1743687778488,1.9792,1784.9,1784.0,6.01099]
[1743687778691,1.12088,1784.7,1784.6,3.2078]
[1743687778885,3.13265,1784.9,1784.7,1.12081]
[1743687779078,2.0119,1784.9,1784.8,4.32857]
[1743687779281,5.073,1785.0,1784.9,1.12071]
[1743687779481,5.073,1785.0,1784.9,2.94701]
[1743687779687,7.0543,1785.0,1784.9,2.94701]
[1743687779889,0.00840735,1785.1,1785.0,1.12064]
[1743687780187,0.00840735,1785.1,1785.0,6.24874]
[1743687780387,0.00840735,1785.1,1785.0,3.2078]
[1743687780588,0.00840735,1785.1,1785.0,4.32844]
[1743687781478,0.00840735,1785.1,1785.0,44.0078]
[1743687781685,0.00840735,1785.1,1785.0,45.12844]
[1743687781883,0.00840735,1785.1,1785.0,49.54874]
[1743687783793,1.12898735,1785.1,1785.0,3.2078]
[1743687784688,1.12071,1784.9,1784.8,0.00840735]
[1743687784883,2.80184,1784.9,1784.2,5.0894]
[1743687785086,1.12108,1784.3,1784.2,3.2078]
[1743687785289,5.07,1784.4,1784.2,3.2078]
[1743687785490,1.892,1784.3,1784.2,4.32891]
[1743687785689,1.892,1784.3,1784.2,3.2078]
[1743687785888,1.892,1784.3,1784.2,4.32895]
[1743687786084,5.07,1784.5,1784.4,1.12102]
[1743687786291,5.07,1784.5,1784.4,4.32882]
[1743687786888,5.07,1784.5,1784.4,3.2078]
[1743687787084,5.07,1784.5,1784.4,4.32882]
[1743687787283,1.12096,1784.5,1784.4,3.2078]
[1743687787484,1.12103,1784.4,1784.2,3.2078]
[1743687787685,3.07503,1784.4,1784.2,3.2078]
[1743687787884,5.07,1784.3,1784.2,3.2078]
[1743687788087,7.024,1784.3,1784.2,4.32895]
[1743687788491,7.024,1784.3,1784.2,6.25625]
[1743687788692,7.024,1784.3,1784.2,3.2078]
[1743687789285,7.024,1784.3,1784.2,4.32895]
[1743687789495,1.8312,1784.7,1784.6,1.1209]
[1743687789690,1.8631,1784.9,1784.8,1.12077]
[1743687789891,1.8631,1784.9,1784.8,4.32857]
[1743687790085,0.00840735,1785.1,1784.9,1.12068]
[1743687790290,1.87150735,1785.1,1785.0,3.2078]
[1743687790496,1.87150735,1785.1,1785.0,44.0078]
[1743687791099,5.49208735,1785.1,1785.0,40.8]
[1743687791299,7.17297735,1785.1,1784.6,3.2078]
[1743687791497,1.12083,1784.7,1784.4,3.2078]
[1743687791794,1.9227,1784.6,1784.5,44.0078]
[1743687792801,1.9227,1784.6,1784.5,45.12876]
[1743687793000,1.9227,1784.6,1784.5,44.0078]
[1743687793501,1.9227,1784.6,1784.5,45.12876]
[1743687794299,1.9227,1784.9,1784.5,46.81005]
[1743687794501,3.04342,1784.9,1784.8,3.2078]
[1743687794805,1.12113,1784.3,1784.1,3.21620735]
[1743687794993,12.59543,1785.0,1784.1,3.21620735]
[1743687794994,1.9366,1784.2,1784.1,3.21620735]
[1743687795302,1.12127,1784.0,1783.9,40.8]
[1743687795491,1.9366,1784.2,1783.9,40.8]
[1743687795696,1.12127,1784.0,1783.9,40.8]
[1743687795897,1.9366,1784.2,1783.9,40.8]
[1743687796094,1.12126,1784.1,1783.9,40.8]
[1743687796295,1.9366,1784.2,1783.9,40.8]
[1743687796296,3.05787,1784.0,1783.9,40.8]
[1743687796692,5.55787,1784.0,1783.9,40.8]
[1743687796897,1.9366,1784.0,1783.9,40.8]
[1743687797092,3.05787,1784.0,1783.9,40.8]
[1743687797505,1.9366,1784.0,1783.9,40.8]
[1743687797701,1.9366,1784.0,1783.9,41.92134]
[1743687797901,1.9366,1784.0,1783.9,43.89884]
[1743687798103,3.05787,1784.0,1783.9,42.7775]
[1743687798306,3.05787,1784.0,1783.9,40.8]
[1743687798693,1.12134,1783.9,1783.8,0.00840735]
[1743687798897,8.09844,1783.9,1783.8,0.00840735]
[1743687799094,8.09844,1783.9,1783.8,40.80840735]
[1743687799296,6.9771,1783.9,1783.8,44.01620735]
[1743687799505,8.09844,1783.9,1783.8,44.01620735]
[1743687799909,6.9771,1783.9,1783.8,44.01620735]
[1743687800208,8.09844,1783.9,1783.8,3.21620735]
[1743687800500,15.48835,1783.9,1783.2,3.2078]
[1743687800704,2.8035,1783.8,1783.2,3.2078]
[1743687800897,1.12165,1783.4,1783.2,3.2078]
[1743687801100,5.07,1783.4,1783.3,1.9817]
[1743687801600,2.80329,1784.0,1783.3,1.9817]
[1743687801601,3.2078,1784.1,1783.3,7.28595]
[1743687801803,3.2078,1784.1,1783.7,3.2078]
[1743687801804,2.97645,1783.9,1783.7,3.2078]
[1743687802004,1.1214,1783.8,1783.7,44.0078]
[1743687802406,1.1214,1783.8,1783.7,40.8]
[1743687803396,3.6214,1783.8,1783.7,40.8]
[1743687803598,1.12152,1783.6,1783.5,3.2078]
[1743687803806,6.19152,1783.6,1783.5,3.2078]
[1743687803999,5.07,1783.6,1783.5,44.0078]
[1743687804203,6.19123,1784.1,1783.5,46.5078]
[1743687804400,3.12057,1784.0,1783.9,3.2078]
[1743687804603,1.9993,1784.0,1783.7,3.2078]
[1743687804803,1.12134,1783.9,1783.8,1.8868]
[1743687805203,1.1214,1783.8,1783.7,3.2078]
[1743687805504,3.12059,1784.0,1783.7,4.32924]
[1743687805705,3.12059,1784.0,1783.9,3.2078]
[1743687805899,1.12142,1783.8,1783.7,3.2078]
[1743687806104,1.9993,1784.0,1783.5,40.8]
[1743687806105,1.12152,1783.6,1783.5,40.8]
[1743687806305,1.12152,1783.6,1783.5,44.0078]
[1743687806807,1.12129,1784.0,1783.5,46.5078]
[1743687807010,1.12129,1784.0,1783.8,3.2078]
[1743687807199,3.02456,1784.1,1783.8,3.2078]
[1743687807400,0.00840735,1784.2,1784.0,3.2078]
[1743687807708,1.12121,1784.1,1784.0,3.2078]
[1743687808006,3.02451,1784.1,1784.0,3.2078]
[1743687808710,1.9033,1784.1,1783.8,5.1626]
[1743687808907,1.12134,1783.9,1783.8,5.1626]
[1743687809611,1.12146,1783.7,1783.6,3.2078]
[1743687810009,5.3038,1783.7,1783.4,3.2078]
[1743687810214,6.9377,1783.6,1783.4,3.2078]
[1743687810517,6.9377,1783.6,1783.4,44.0078]
[1743687810810,1.12159,1783.5,1783.4,44.0078]
[1743687811010,6.19057,1783.6,1783.4,44.0078]
[1743687811311,6.19057,1783.6,1783.5,1.944]
[1743687811507,1.12143,1783.8,1783.5,3.06559]
[1743687811705,1.8687,1783.9,1783.7,3.2078]
[1743687811905,1.1214,1783.8,1783.7,3.2078]
[1743687812511,6.9377,1783.9,1783.7,3.2078]
[1743687812812,8.05904,1783.9,1783.8,1.944]
[1743687813010,6.19034,1783.9,1783.8,1.944]
[1743687813407,1.1214,1783.8,1783.7,3.2078]
[1743687813607,5.069,1783.9,1783.8,1.1214]
[1743687813907,6.19034,1783.9,1783.8,1.8465]
[1743687814214,5.069,1783.9,1783.8,2.9679]
[1743687814414,1.12124,1784.1,1783.9,1.12132]
[1743687814609,1.12124,1784.1,1783.8,1.8465]
[1743687814610,1.12124,1784.1,1784.0,5.0543]
[1743687814912,0.00840735,1784.2,1784.0,5.0543]
[1743687815313,0.00840735,1784.2,1784.1,1.12121]
[1743687815508,1.12121,1784.1,1784.0,1.8465]
[1743687815709,1.12121,1784.1,1783.8,3.2078]
[1743687815710,1.12134,1783.9,1783.8,3.2078]
[1743687816806,1.12133,1784.0,1783.8,4.32919]
[1743687817015,1.12133,1784.0,1783.9,1.8785]
[1743687817217,3.01283,1784.0,1783.9,1.8785]
[1743687817508,1.12133,1784.0,1783.9,1.8785]
[1743687817912,6.19026,1784.1,1783.9,1.8785]
[1743687818111,6.19026,1784.1,1784.0,3.2078]
[1743687819321,1.12127,1784.0,1783.9,1.8785]
[1743687819511,1.12134,1783.9,1783.8,3.2078]
[1743687819917,4.74928,1784.0,1783.6,3.2078]
[1743687820113,1.12146,1783.7,1783.6,3.2078]
[1743687820311,6.18946,1783.7,1783.6,3.2078]
[1743687821115,6.1893,1784.0,1783.8,1.12138]
[1743687821315,6.1893,1784.0,1783.9,5.0862]
[1743687821516,6.1893,1784.0,1783.9,1.8784]
[1743687821721,7.014,1784.0,1783.7,3.2078]
[1743687822025,1.12139,1783.9,1783.8,1.8784]
[1743687822218,1.12139,1783.9,1783.7,3.2078]
[1743687822219,1.1214,1783.8,1783.7,3.2078]
[1743687822519,1.12152,1783.6,1783.5,3.2078]
[1743687822715,6.18952,1783.6,1783.5,3.2078]
[1743687823014,1.12171,1783.3,1783.2,3.21620735]
[1743687823210,8.02132,1783.5,1783.0,1.9617]
[1743687823406,2.0095,1783.2,1782.7,3.2078]
[1743687823612,2.80488,1783.0,1782.5,3.2078]
[1743687823817,1.12215,1782.6,1782.5,3.2078]
[1743687824018,1.12215,1782.6,1782.5,40.8]
[1743687825620,3.14004735,1782.7,1782.5,44.0078]
[1743687825822,1.12215,1782.6,1782.5,44.0078]
[1743687826815,1.12223,1782.5,1782.3,1.9617]
[1743687827021,5.068,1782.5,1782.4,3.2078]
[1743687827316,5.068,1782.5,1782.2,3.2078]
[1743687827508,5.068,1782.5,1782.1,1.12245]
[1743687827509,1.8994,1782.4,1782.1,1.12245]
[1743687827712,3.02172,1782.4,1782.2,5.0754]
[1743687827913,1.12234,1782.3,1782.2,5.0754]
[1743687828109,1.12246,1782.2,1782.0,3.2078]
[1743687828314,1.12247,1782.1,1782.0,5.1574]
[1743687829019,1.12247,1782.1,1782.0,45.9574]
[1743687829817,6.19147,1782.1,1782.0,45.9574]
[1743687830020,6.19147,1782.1,1782.0,44.0078]
[1743687830330,10.3753,1782.1,1781.6,5.1574]
[1743687830519,1.12272,1781.7,1781.6,5.1574]
[1743687830816,6.19272,1781.7,1781.6,5.1574]
[1743687832016,5.069,1781.8,1781.7,1.12268]
[1743687832216,5.069,1781.8,1781.7,1.9287]
[1743687833219,5.07,1781.9,1781.8,1.12266]
[1743687833419,5.07,1781.9,1781.8,3.2078]
[1743687833620,5.07,1781.9,1781.8,4.33046]
[1743687834122,6.19259,1781.9,1781.8,3.2078]
[1743687834326,5.07,1781.9,1781.8,3.2078]
[1743687834525,5.07,1781.9,1781.8,4.33046]
[1743687834920,5.07,1781.9,1781.8,3.2078]
[1743687835321,5.07,1781.9,1781.8,4.33046]
[1743687835521,1.12251,1782.1,1781.9,1.12256]
[1743687835717,1.9556,1782.5,1782.0,5.1859]
[1743687835923,5.07,1782.5,1782.4,3.2078]
[1743687836223,6.19222,1782.5,1782.4,3.2078]
[1743687836524,6.19222,1782.5,1782.4,44.0078]
[1743687836727,6.19222,1782.5,1782.4,40.8]
[1743687837114,1.12234,1782.3,1782.2,3.2078]
[1743687837527,1.12242,1782.2,1782.0,3.10062]
[1743687837722,1.12247,1782.1,1782.0,1.9781]
[1743687838225,1.12247,1782.1,1782.0,42.7781]
[1743687838427,2.0569,1782.4,1782.0,42.7781]
[1743687838629,1.12244,1782.2,1782.0,42.7781]
[1743687838823,7.056,1782.1,1782.0,43.90063]
[1743687839130,5.07,1782.1,1782.0,45.9859]
[1743687839329,5.07,1782.1,1782.0,47.10843]
[1743687842429,1.12262,1781.9,1781.8,3.2078]
[1743687842732,1.12259,1781.9,1781.8,3.2078]
[1743687842931,1.12259,1781.9,1781.8,4.33046]
[1743687843234,3.16746,1782.0,1781.9,1.12259]
[1743687843425,2.0449,1782.0,1781.9,3.13149]
[1743687843625,1.12259,1781.9,1781.8,3.2078]
[1743687844026,3.04169,1781.9,1781.8,3.2078]
[1743687844427,1.9191,1781.9,1781.8,4.33046]
[1743687844731,1.9191,1781.9,1781.8,3.2078]
[1743687844930,6.19249,1782.1,1781.9,1.12257]
[1743687845127,8.11159,1782.1,1781.9,2.0089]
[1743687845327,6.9891,1782.1,1782.0,4.33033]
[1743687845537,8.11157,1782.1,1782.0,40.8]
[1743687845829,1.9621,1782.6,1782.0,46.81413]
[1743687846031,1.12215,1782.6,1782.4,1.12226]
[1743687846330,3.0413,1782.6,1782.3,4.33013]
[1743687846529,1.9191,1782.6,1782.5,1.12222]
[1743687846934,0.00840735,1782.7,1782.5,3.2078]
[1743687847135,5.07740735,1782.7,1782.6,2.0508]
[1743687847330,7.03510735,1782.7,1782.6,2.0508]
[1743687847526,8.15719735,1782.7,1782.6,2.0508]
[1743687847730,7.03510735,1782.7,1782.6,3.17295]
[1743687847933,0.00840735,1782.7,1782.6,5.67295]
[1743687848432,2.0341,1783.4,1783.1,1.1218]
[1743687848640,1.12173,1783.3,1783.2,3.2078]
[1743687849035,1.12184,1783.1,1783.0,40.8]
[1743687849335,1.12208,1782.8,1782.6,3.2078]
[1743687849538,2.0487,1783.0,1782.9,0.00840735]
[1743687849731,3.1706,1783.0,1782.9,0.00840735]
[1743687849928,1.12205,1782.8,1782.6,3.2078]
[1743687850239,2.0487,1783.0,1782.6,5.2486]
[1743687850542,1.12207,1782.8,1782.6,3.2078]
[1743687850840,1.12209,1782.7,1782.6,5.2486]
[1743687851029,1.12209,1782.7,1782.6,3.2078]
[1743687851738,6.18909,1782.7,1782.6,3.2078]
[1743687852437,8.23779,1782.7,1782.6,3.2078]
[1743687853655,1.1222,1782.6,1782.4,3.2078]
[1743687853946,1.12222,1782.5,1782.4,5.1083]
[1743687854146,3.06912,1782.5,1782.4,3.2078]
[1743687854951,1.9469,1782.5,1782.4,3.2078]
[1743687855151,1.1222,1782.6,1782.4,4.33008]
[1743687855453,7.0139,1782.7,1782.4,6.23058]
[1743687855651,1.9271,1782.8,1782.4,1.9005]
[1743687855849,2.0485,1783.0,1782.7,1.12205]
[1743687856058,5.066,1783.1,1782.8,1.8604]
[1743687856253,5.066,1783.1,1782.8,3.2078]
[1743687856254,3.17046,1782.9,1782.8,3.2078]
[1743687856447,2.0485,1782.9,1782.6,1.12213]
[1743687856649,1.12209,1782.7,1782.6,1.8604]
[1743687856853,2.0485,1782.9,1782.6,1.8604]
[1743687857154,1.12207,1782.8,1782.7,3.2078]
[1743687857544,2.0485,1782.9,1782.7,3.2078]
[1743687857748,1.12203,1782.8,1782.7,3.2078]
[1743687857948,3.17048,1782.9,1782.7,4.32989]
[1743687858156,3.17048,1782.9,1782.7,3.2078]
[1743687858356,1.12195,1783.0,1782.7,4.32988]
[1743687858557,1.12196,1782.9,1782.8,1.8604]
[1743687858954,1.12203,1782.8,1782.7,3.2078]
[1743687860160,1.9634,1782.9,1782.4,3.2078]
[1743687860360,1.12222,1782.5,1782.4,3.2078]
[1743687860562,1.9634,1782.7,1782.4,5.1165]
[1743687860766,1.9634,1782.7,1782.6,4.32995]
[1743687861060,1.12198,1782.9,1782.7,1.12205]
[1743687861362,7.86861,1783.1,1782.8,6.23853]
[1743687861363,3.08535,1783.0,1782.8,6.23853]
[1743687861558,1.1219,1783.0,1782.9,3.09472]
[1743687861763,1.1219,1783.0,1782.9,1.9728]
[1743687861950,2.5,1783.0,1782.4,3.2078]
[1743687862150,7.0573,1783.1,1782.4,3.2078]
[1743687862151,3.11531,1782.9,1782.8,3.2078]
[1743687863158,5.064,1783.1,1782.8,3.2078]
[1743687863363,1.12196,1782.9,1782.8,3.2078]
[1743687864861,3.11522,1783.0,1782.8,4.3298]
[1743687865058,1.9933,1783.0,1782.9,3.01946]
[1743687865254,0.00840735,1783.2,1783.1,1.12184]
[1743687865553,5.063,1784.0,1783.1,8.81684]
[1743687865752,1.9938,1784.1,1783.9,4.32914]
[1743687865960,1.9938,1784.1,1783.9,4.32912]
[1743687866158,1.12127,1784.0,1783.9,3.2078]
[1743687866358,1.8824,1784.0,1783.9,3.2078]
[1743687866765,0.00840735,1784.1,1784.0,1.12127]
[1743687867258,0.00840735,1784.1,1784.0,5.51877]
[1743687867458,0.00840735,1784.1,1784.0,43.81877]
[1743687867853,0.00840735,1784.1,1784.0,42.6975]
[1743687868064,1.12961735,1784.1,1784.0,42.6975]
[1743687868365,0.00840735,1784.1,1784.0,43.81877]
[1743687869153,0.00840735,1784.1,1784.0,46.31877]
[1743687870569,1.12961735,1784.1,1784.0,42.6975]
[1743687870756,1.12961735,1784.1,1784.0,1.8975]
[1743687871166,1.12961735,1784.1,1783.9,3.2078]
[1743687871667,0.00840735,1784.1,1784.0,1.12127]
[1743687871872,0.00840735,1784.1,1784.0,3.11817]
[1743687872264,0.00840735,1784.1,1784.0,5.61817]
[1743687872767,0.00840735,1784.1,1784.0,6.89497]
[1743687873264,0.00840735,1784.1,1784.0,5.61817]
[1743687875065,7.35e-06,1784.1,1784.0,11.44217]
[1743687875268,29.39132586,1785.8,1784.0,11.44217]
[1743687875269,26.99818586,1785.8,1784.3,3.2078]
[1743687875568,3.03005,1785.7,1785.6,3.2078]
[1743687875960,1.12027,1785.6,1785.5,40.8]
[1743687876166,1.12046,1785.3,1785.2,3.2078]
[1743687876771,3.03026,1785.3,1785.2,44.0078]
[1743687876967,3.03026,1785.3,1785.2,3.2078]
[1743687877168,4.88586,1785.3,1785.2,3.2078]
[1743687877368,3.7654,1785.3,1785.2,4.32832]
[1743687877573,0.00840735,1785.7,1785.2,3.2078]
[1743687877770,7.106,1785.6,1785.2,1.9605]
[1743687877973,7.106,1785.6,1785.3,4.32825]
[1743687878173,8.2263,1785.6,1785.3,4.32825]
[1743687878967,8.2263,1785.6,1785.3,4.32821]
[1743687879169,7.106,1785.6,1785.4,1.12039]
[1743687879379,8.22628,1785.6,1785.3,4.32824]
[1743687879673,1.12034,1785.5,1785.3,3.2078]
[1743687879874,1.9474,1785.4,1785.3,4.32826]
[1743687880074,1.9474,1785.4,1785.3,3.2078]
[1743687880265,1.12049,1785.3,1785.1,3.21620735]
[1743687880465,1.9474,1785.2,1785.1,4.33678735]
[1743687880669,1.9474,1785.2,1785.1,3.21620735]
[1743687880872,12.30377,1785.2,1784.7,1.12079]
[1743687881173,12.30377,1785.2,1784.6,3.2078]
[1743687881174,7.9655,1785.1,1784.6,1.12087]
[1743687881370,1.12078,1784.8,1784.6,1.12088]
[1743687881573,3.06823,1784.7,1784.4,4.32877]
[1743687881768,3.06823,1784.7,1784.5,1.12096]
[1743687881970,1.9474,1784.7,1784.5,1.12096]
[1743687882176,0.00840735,1784.6,1784.5,1.12096]
[1743687882481,0.00840735,1784.6,1784.4,3.21620735]
[1743687882482,1.12096,1784.5,1784.4,0.00840735]
[1743687883176,4.32876,1784.5,1784.4,0.00840735]
[1743687883372,4.32876,1784.5,1784.0,5.0847]
[1743687883373,1.12119,1784.2,1784.0,3.2078]
[1743687883770,1.9719,1784.1,1784.0,3.2078]
[1743687884083,3.09847,1784.5,1784.2,1.12115]
[1743687884373,3.09286,1784.5,1784.2,4.32891]
[1743687884579,1.9719,1784.5,1784.3,1.9311]
[1743687884772,3.09288,1784.5,1784.3,1.9311]
[1743687884973,1.9719,1784.5,1784.3,1.9311]
[1743687885374,3.09291,1784.5,1784.3,1.9311]
[1743687885673,1.12102,1784.4,1784.3,1.9311]
[1743687885877,1.9719,1784.4,1784.3,1.9311]
[1743687886072,1.12102,1784.4,1784.3,1.9311]
[1743687886674,1.12102,1784.4,1784.2,4.32893]
[1743687886882,0.00840735,1784.6,1784.2,4.32891]
[1743687887082,1.12105,1784.4,1784.3,1.917]
[1743687887575,1.12108,1784.3,1784.2,3.2078]
[1743687887774,1.9735,1784.3,1784.1,1.12116]
[1743687888080,1.12108,1784.3,1784.2,42.717]
[1743687888279,0.00840735,1784.6,1784.5,1.12096]
[1743687888577,0.00840735,1784.6,1784.5,4.32876]
[1743687888785,0.00840735,1784.6,1784.5,6.82876]
[1743687888976,0.00840735,1784.6,1784.5,47.62876]
[1743687889685,0.00840735,1784.6,1784.5,45.12876]
[1743687890785,0.00840735,1784.6,1784.5,47.62876]
[1743687890984,0.00840735,1784.6,1784.5,45.12876]
[1743687892484,0.00840735,1784.6,1784.5,47.62876]
[1743687893280,1.12930735,1784.6,1784.5,45.12876]
[1743687893787,1.12930735,1784.6,1784.5,40.8]
[1743687893989,1.12930735,1784.6,1783.8,9.67379]
[1743687893990,0.00840735,1784.6,1784.1,3.2078]
[1743687894283,1.12112,1784.3,1784.1,4.32899]
[1743687894482,3.10375,1784.2,1784.1,3.2078]
[1743687894679,1.12121,1784.1,1783.8,3.2078]
[1743687894884,5.05,1784.3,1784.0,3.2078]
[1743687895087,5.05,1784.3,1784.2,1.12115]
[1743687895386,5.05,1784.3,1784.2,4.32895]
[1743687895387,6.17108,1784.3,1784.2,4.32895]
[1743687895587,5.05,1784.3,1784.2,6.29465]
[1743687895884,1.12115,1784.2,1784.1,41.92117]
[1743687896182,3.11535,1784.2,1784.1,40.8]
[1743687896478,3.11535,1784.2,1783.8,2.80349]
[1743687896479,7.29711,1784.2,1783.8,3.2078]
[1743687896682,4.79711,1784.2,1783.5,5.1735]
[1743687896877,8.75291,1784.2,1783.8,1.12137]
[1743687897271,8.75291,1784.2,1783.7,1.12141]
[1743687897478,5.95,1784.2,1783.6,40.8]
[1743687897673,5.95,1784.2,1783.8,3.2078]
[1743687897879,5.95,1784.2,1784.0,1.12125]
[1743687898080,1.12123,1784.1,1783.9,3.087]
[1743687898281,1.9716,1784.0,1783.9,3.087]
[1743687898687,1.12087,1784.7,1784.1,2.80298]
[1743687898885,1.12102,1784.4,1784.2,3.09639]
[1743687899078,1.9716,1784.3,1784.2,6.30425]
[1743687899283,1.9716,1784.3,1784.2,47.10425]
[1743687899489,5.049,1784.7,1784.5,1.12096]
[1743687899687,6.16987,1784.7,1784.5,1.12096]
[1743687900083,6.16987,1784.7,1784.2,45.9831]
[1743687900084,5.049,1784.7,1784.2,45.9831]
[1743687900278,1.12098,1784.5,1784.3,1.12104]
[1743687900484,1.12108,1784.3,1784.2,40.8]
[1743687900790,1.12108,1784.3,1783.3,13.46165]
[1743687900791,5.049,1784.3,1783.3,3.2078]
[1743687901089,3.2078,1783.8,1783.0,5.1831]
[1743687901283,5.60633,1784.1,1783.0,7.98783]
[1743687901284,10.2618,1783.7,1783.0,7.98783]
[1743687901485,6.16953,1783.6,1783.0,5.1831]